bitfinex/quotes_ETHUSD_20250114
["timestamp","ask_amount","ask_price","bid_price","bid_amount"]
[1736830590366,0.85722691,3179.0,3178.3,0.7625]
[1736830590554,0.8179,3179.0,3178.4,0.390883]
[1736830590756,0.8179,3179.0,3178.4,0.47630684]
[1736830591941,0.03932334,3179.2,3178.5,0.0075]
[1736830591942,0.83322334,3179.2,3178.5,0.0075]
[1736830592279,0.83322334,3179.2,3178.5,0.0928934]
[1736830592280,0.03932334,3179.1,3178.5,0.0928934]
[1736830595339,1.42802047,3178.9,3178.5,0.0928934]
[1736830595542,1.42802047,3178.9,3178.5,0.49306174]
[1736830597787,1.42802047,3178.9,3178.5,0.48556174]
[1736830597957,1.42802047,3178.9,3178.5,0.0853934]
[1736830598158,0.03932362,3178.8,3178.5,0.0853934]
[1736830598353,0.03932362,3178.8,3178.3,0.7625]
[1736830598568,0.03932362,3178.8,3178.6,0.08513422]
[1736830598760,1.42802047,3178.9,3178.3,0.7625]
[1736830599086,1.42802047,3178.9,3178.4,0.37625]
[1736830599385,1.42802047,3178.9,3178.4,0.46139656]
[1736830602701,0.03932481,3178.8,3178.4,0.46139656]
[1736830602993,1.42802047,3178.7,3178.4,0.08514656]
[1736830604352,0.8089,3178.8,3178.4,0.08514656]
[1736830605791,1.42802047,3178.9,3178.4,0.08514656]
[1736830609155,0.55,3178.8,3178.4,0.08514656]
[1736830609648,0.55,3178.6,3178.4,0.08514656]
[1736830610249,0.03932351,3178.7,3178.4,0.08514656]
[1736830610250,0.55,3178.7,3178.4,0.08514656]
[1736830611104,1.3589,3178.6,3178.4,0.08514656]
[1736830611427,1.39822589,3178.6,3178.0,1.1189]
[1736830611627,1.39822589,3178.6,3178.5,0.08540033]
[1736830612133,1.39822589,3178.6,3178.0,0.8033]
[1736830612335,1.39822589,3178.6,3178.5,0.08540033]
[1736830612648,1.39822589,3178.6,3178.0,0.8033]
[1736830613079,1.39822589,3178.6,3178.1,0.08552207]
[1736830613284,1.3589,3178.6,3178.1,0.08552207]
[1736830617282,1.97802047,3178.2,3178.1,0.08552207]
[1736830617636,0.55,3178.1,3177.5,0.8033]
[1736830618638,0.55,3178.1,3177.6,3.0856743]
[1736830618976,0.55,3178.1,3177.7,0.70360943]
[1736830619204,1.97802047,3178.4,3177.7,0.70360943]
[1736830619359,0.8089,3178.6,3177.9,0.8322]
[1736830619560,0.03933298,3178.5,3177.9,0.8322]
[1736830619864,0.55,3178.3,3178.0,0.08555251]
[1736830620260,0.55,3178.1,3178.0,0.08555251]
[1736830620460,0.28328514,3178.1,3178.0,0.08555251]
[1736830620666,0.28328514,3178.1,3177.2,0.8322]
[1736830620893,1.42802047,3178.0,3177.3,0.10099446]
[1736830621101,2.24352047,3178.2,3177.5,0.0075]
[1736830621689,2.24352047,3178.2,3177.6,0.0859031]
[1736830622391,2.24352047,3178.2,3177.6,3.0859031]
[1736830622707,2.24352047,3178.2,3177.7,0.62405231]
[1736830623001,0.8155,3178.2,3177.8,0.8322]
[1736830623319,1.42802047,3178.4,3177.8,0.9180422]
[1736830623809,0.8155,3178.9,3178.0,0.8322]
[1736830623965,1.42802047,3178.7,3178.0,0.8322]
[1736830624203,1.42802047,3178.7,3178.1,0.48438487]
[1736830625149,1.42802047,3178.8,3178.1,0.48438487]
[1736830625357,1.42802047,3178.8,3178.2,0.0075]
[1736830625555,1.42802047,3178.8,3178.3,0.8322]
[1736830626006,1.42802047,3178.8,3178.4,0.08565956]
[1736830632887,0.85482982,3178.9,3178.4,0.08565956]
[1736830632888,0.03932982,3178.9,3178.4,0.08565956]
[1736830633090,2.0589862,3179.0,3178.4,0.08565956]
[1736830633261,2.0589862,3179.0,3178.4,0.49283252]
[1736830633461,1.42802047,3179.0,3178.4,0.49283252]
[1736830635099,0.8155,3179.2,3178.5,0.0075]
[1736830635249,1.42802047,3179.1,3178.5,0.0075]
[1736830635459,1.42802047,3179.1,3178.5,0.09294886]
[1736830636358,1.42802047,3179.1,3178.5,0.84081404]
[1736830636551,1.42802047,3178.9,3178.5,0.84081404]
[1736830637392,0.85482146,3179.2,3178.5,0.84081404]
[1736830637694,0.85482146,3179.2,3178.5,0.09294886]
[1736830637890,1.42802047,3179.0,3178.5,3.09294886]
[1736830638451,0.03932146,3179.2,3178.6,0.8186]
[1736830638757,1.42802047,3179.1,3178.7,0.08534641]
[1736830639389,0.03932146,3179.2,3178.7,0.08534641]
[1736830639592,1.42802047,3179.0,3178.7,0.08534641]
[1736830648696,1.46734193,3179.2,3178.7,0.47649105]
[1736830648905,1.46734193,3179.2,3178.7,0.08534641]
[1736830649381,1.42802047,3179.0,3178.7,0.08534641]
[1736830654394,1.42802047,3179.2,3178.7,0.08534641]
[1736830654601,0.03932168,3179.1,3178.7,0.08534641]
[1736830661040,1.42802047,3179.2,3178.7,0.08534641]
[1736830666950,0.03932179,3179.1,3178.7,0.08534641]
[1736830667148,0.7656,3179.0,3178.7,0.08534641]
[1736830667352,1.42802047,3178.8,3178.3,0.7926]
[1736830667515,1.65131502,3178.8,3178.3,0.7926]
[1736830668249,0.7656,3178.6,3178.0,1.1082]
[1736830668457,3.14537,3179.3,3178.3,0.0075]
[1736830668625,1.42802047,3179.1,3178.4,0.7926]
[1736830668828,0.03932341,3179.0,3178.4,0.7926]
[1736830669142,0.03932341,3179.0,3178.4,3.7926]
[1736830669414,0.03932341,3179.0,3178.4,3.93883]
[1736830671076,1.46734362,3179.1,3178.4,3.93883]
[1736830672076,1.46734362,3179.1,3178.4,0.7926]
[1736830672364,1.42802047,3178.9,3178.4,0.7926]
[1736830672758,0.03932315,3179.1,3178.4,0.7926]
[1736830673074,1.42802047,3179.0,3178.4,0.7926]
[1736830673289,1.42802047,3178.8,3178.4,0.7926]
[1736830674284,0.7929,3178.7,3178.0,0.3156]
[1736830674465,1.42802047,3178.4,3178.0,0.3156]
[1736830675777,1.42802047,3178.6,3178.0,0.3156]
[1736830676186,0.03933044,3178.5,3178.0,0.3156]
[1736830676640,1.42802047,3178.6,3178.0,0.3156]
[1736830677146,1.42802047,3178.6,3178.0,3.46223]
[1736830677361,1.42802047,3178.6,3178.1,0.424153]
[1736830677844,1.42802047,3178.6,3178.2,0.7793]
[1736830678551,1.42802047,3178.8,3178.3,0.08548199]
[1736830678773,1.42802047,3178.8,3178.3,3.08548199]
[1736830679246,0.03932561,3178.7,3178.3,0.08548199]
[1736830679757,1.42802047,3178.8,3178.3,0.08548199]
[1736830679966,0.03932663,3178.7,3178.3,0.51437549]
[1736830680345,1.42802047,3178.8,3178.3,0.51437549]
[1736830680974,0.03932663,3178.7,3178.3,0.51437549]
[1736830682653,1.42802047,3178.8,3178.3,0.51437549]
[1736830683251,1.42802047,3179.0,3178.4,0.0075]
[1736830683447,1.42802047,3179.0,3178.5,0.7891]
[1736830683448,1.46734476,3179.0,3178.5,0.7891]
[1736830683681,0.03932306,3178.9,3178.5,0.87470139]
[1736830684152,1.42802047,3178.8,3178.5,0.87470139]
[1736830687359,1.42802047,3178.6,3178.5,0.08560139]
[1736830687564,1.42802047,3178.6,3178.3,0.7891]
[1736830687887,1.42802047,3178.6,3178.5,0.08569844]
[1736830688094,1.42802047,3178.6,3178.4,0.08577741]
[1736830688311,1.42802047,3178.6,3178.5,0.08574697]
[1736830688668,1.42802047,3178.6,3178.3,0.7891]
[1736830688869,3.7670064,3179.3,3178.6,0.7966]
[1736830688870,0.6215964,3179.3,3178.6,0.7966]
[1736830689096,4.0,3179.4,3178.7,0.7891]
[1736830689384,4.0,3179.4,3178.7,0.87479998]
[1736830689592,1.46733978,3179.3,3178.7,0.87479998]
[1736830690792,1.42802047,3179.1,3178.7,0.87479998]
[1736830692000,0.03931937,3179.0,3178.7,0.87479998]
[1736830693615,1.42802047,3179.1,3178.7,0.87479998]
[1736830694113,0.62201378,3179.5,3178.7,0.87479998]
[1736830694313,0.0393228,3179.3,3178.7,0.87479998]
[1736830694983,1.42802047,3179.4,3178.7,0.87479998]
[1736830695518,0.03931947,3179.3,3178.7,0.87479998]
[1736830697115,1.42802047,3179.2,3178.7,0.87479998]
[1736830700917,1.46733996,3179.4,3178.7,0.87479998]
[1736830701093,1.42802047,3179.4,3178.7,0.87479998]
[1736830703444,0.03931942,3179.3,3178.7,0.87479998]
[1736830709450,1.42802047,3179.2,3178.7,0.87479998]
[1736830713912,1.46733996,3179.2,3178.7,0.87479998]
[1736830716542,1.42802047,3178.8,3178.7,0.08569998]
[1736830716886,3.146,3178.7,3178.4,7.28648511]
[1736830717085,1.46734746,3178.6,3178.2,0.8116]
[1736830717861,1.42802047,3178.4,3178.2,0.8116]
[1736830718988,1.42802047,3178.4,3177.8,3.8116]
[1736830719294,1.42802047,3178.4,3177.8,0.8116]
[1736830719295,1.46735069,3178.4,3177.8,0.8116]
[1736830719903,1.46735069,3178.4,3177.9,0.3156]
[1736830721299,1.46735069,3178.4,3177.8,0.8116]
[1736830722274,1.46735069,3178.4,3177.8,1.95296851]
[1736830722603,1.42802047,3178.4,3177.8,1.95296851]
[1736830723399,1.42802047,3178.4,3177.9,0.08566617]
[1736830723576,4.57426047,3178.4,3177.9,0.08566617]
[1736830723902,1.42802047,3178.0,3177.9,0.08566617]
[1736830724301,1.42802047,3178.0,3177.6,7.28648511]
[1736830724495,1.42802047,3177.8,3177.6,7.28648511]
[1736830724665,1.42802047,3177.8,3177.7,0.085838]
[1736830726980,5.12485047,3177.8,3177.7,0.085838]
[1736830727187,5.89095047,3177.8,3177.7,0.085838]
[1736830727369,5.89095047,3177.8,3176.9,0.0075]
[1736830727707,1.42802047,3177.2,3177.0,0.08605118]
[1736830728664,1.46736289,3177.4,3177.0,0.08605118]
[1736830728869,3.14716,3177.5,3177.0,0.08605118]
[1736830734209,0.03934204,3177.4,3177.0,0.08605118]
[1736830734510,3.18659204,3177.4,3177.0,0.08605118]
[1736830737173,3.14725,3177.4,3177.0,0.08605118]
[1736830737383,3.14737,3177.3,3176.8,0.8116]
[1736830737673,3.18671258,3177.3,3176.8,0.8116]
[1736830737874,3.18671258,3177.3,3176.9,0.08699698]
[1736830741637,0.03934258,3177.3,3176.9,0.08699698]
[1736830741962,0.03934374,3177.4,3176.9,0.08699698]
[1736830742339,3.14744,3177.2,3176.9,0.08699698]
[1736830742981,3.14744,3177.2,3176.7,3.0]
[1736830743434,3.14744,3177.2,3176.8,0.08702744]
[1736830743834,0.8218,3177.1,3176.8,0.08702744]
[1736830744087,0.8218,3177.1,3176.3,4.21730738]
[1736830744088,3.14772,3176.9,3176.3,4.21730738]
[1736830744254,0.03934961,3176.8,3176.3,0.8204]
[1736830744706,3.14772,3176.9,3176.3,0.8204]
[1736830745065,0.03934963,3176.8,3176.3,0.8204]
[1736830745767,3.14772,3176.9,3176.3,1.20244]
[1736830746416,0.8218,3177.1,3176.3,1.20244]
[1736830746417,3.96934,3177.1,3176.3,1.20244]
[1736830746582,3.01888504,3177.4,3176.4,0.8279]
[1736830746583,3.14736,3177.3,3176.4,0.8279]
[1736830747186,0.03934705,3177.2,3176.4,3.8279]
[1736830747388,0.03934705,3177.2,3176.5,1.14964251]
[1736830747769,3.18679705,3177.2,3176.5,1.14964251]
[1736830750520,4.57695045,3177.1,3176.4,3.8279]
[1736830750810,0.03934708,3177.0,3176.4,3.8279]
[1736830751212,0.86114708,3177.0,3176.4,3.8204]
[1736830751509,4.57715045,3176.9,3176.4,3.8204]
[1736830751713,0.03935007,3176.8,3176.4,3.8204]
[1736830753278,0.03935007,3176.8,3176.4,0.8204]
[1736830753618,0.03935007,3176.8,3176.5,0.08832593]
[1736830753976,3.14788,3176.8,3176.2,3.7926]
[1736830754319,0.03935219,3176.7,3176.2,3.7926]
[1736830754505,0.03935219,3176.7,3176.3,0.08838687]
[1736830754701,3.14802,3176.6,3176.3,0.08838687]
[1736830754902,3.14821,3176.4,3176.3,0.08838687]
[1736830755295,3.14821,3176.4,3175.8,0.7926]
[1736830755817,3.14821,3176.4,3175.9,0.0888766]
[1736830755994,3.18766815,3176.3,3175.9,0.0888766]
[1736830756182,0.03935815,3176.3,3175.9,0.0888766]
[1736830757129,3.18761816,3176.4,3175.9,0.0888766]
[1736830763129,1.3688,3176.5,3175.9,0.0888766]
[1736830763508,0.8188,3176.7,3175.9,0.0888766]
[1736830763709,0.64647993,3177.0,3176.3,0.7926]
[1736830763909,3.96631,3177.2,3176.4,0.7926]
[1736830764231,3.96631,3177.2,3176.4,0.88174073]
[1736830765244,4.0,3177.9,3176.7,0.0075]
[1736830765409,4.0,3177.9,3176.8,0.0075]
[1736830765410,0.8188,3177.8,3176.8,0.0075]
[1736830765754,0.8188,3177.8,3176.9,3.8001]
[1736830766103,3.14671,3178.0,3177.1,0.0075]
[1736830766307,3.14671,3178.0,3177.2,0.7926]
[1736830766509,0.55,3178.0,3177.2,0.88104579]
[1736830767741,3.69665,3178.0,3177.2,0.88104579]
[1736830767909,4.45021253,3178.0,3177.2,0.88104579]
[1736830768431,3.14665,3178.0,3177.2,0.88104579]
[1736830768746,0.8188,3178.1,3177.2,0.88104579]
[1736830769244,3.96536,3178.1,3177.2,0.88104579]
[1736830770214,3.14656,3178.1,3177.2,0.88104579]
[1736830770509,0.8132,3178.4,3177.2,0.88104579]
[1736830770510,3.95952,3178.4,3177.3,0.0075]
[1736830770714,3.14636,3178.3,3177.4,0.8312]
[1736830770909,3.14646,3178.2,3177.4,0.8312]
[1736830771143,3.14646,3178.2,3177.5,0.08801441]
[1736830771350,0.03933615,3178.1,3177.5,0.08801441]
[1736830776716,3.14654,3178.1,3177.5,0.08801441]
[1736830776918,0.03933617,3178.0,3177.5,0.08801441]
[1736830780424,3.18596617,3178.0,3177.5,0.08783507]
[1736830780625,3.50456279,3178.0,3177.5,0.08783507]
[1736830789649,0.35793279,3178.0,3177.5,0.08783507]
[1736830789935,3.14673,3177.9,3177.5,0.08783507]
[1736830790275,0.03933715,3177.8,3177.5,0.08783507]
[1736830790779,3.18619715,3177.8,3177.5,0.08783507]
[1736830792539,3.53667653,3177.8,3177.5,0.08783507]
[1736830796286,3.18619715,3177.8,3177.5,0.08783507]
[1736830797391,4.61516216,3177.8,3177.5,0.08783507]
[1736830798879,3.14693,3177.7,3177.5,0.08783507]
[1736830799079,4.61532601,3177.6,3177.5,0.08783507]
[1736830799281,6.45785861,3177.6,3176.8,0.7846]
[1736830799453,4.57644501,3177.2,3176.8,0.7846]
[1736830799652,0.03934756,3177.1,3176.8,0.7846]
[1736830800175,1.42896501,3177.0,3176.8,0.7846]
[1736830800380,3.18714762,3176.9,3176.5,0.7846]
[1736830800581,3.1478,3176.9,3176.5,3.7846]
[1736830801107,0.831,3177.5,3176.5,5.39894238]
[1736830801311,3.14734,3177.3,3176.5,5.39894238]
[1736830802316,3.14716,3177.5,3176.6,0.7921]
[1736830802530,3.76382119,3177.5,3176.6,0.7921]
[1736830802802,0.03934458,3177.4,3176.6,0.7921]
[1736830803007,0.03934458,3177.4,3176.7,1.32524424]
[1736830803365,3.18659458,3177.4,3176.7,1.32524424]
[1736830803694,3.14733,3177.3,3176.7,0.7846]
[1736830803890,0.03934462,3177.2,3176.7,0.7846]
[1736830804719,3.14754,3177.1,3176.7,0.7846]
[1736830804904,0.03934772,3177.0,3176.7,0.7846]
[1736830805869,0.03934772,3177.0,3176.4,0.7846]
[1736830806105,3.14774,3176.9,3176.4,0.7846]
[1736830806413,0.35412615,3176.8,3176.4,0.7846]
[1736830806712,3.18718215,3176.8,3176.4,0.7846]
[1736830808314,3.14783,3176.8,3176.4,0.7846]
[1736830808514,0.55,3177.0,3176.4,0.7846]
[1736830808816,3.69763,3177.0,3176.4,0.7846]
[1736830809383,3.14773,3176.9,3176.4,0.7846]
[1736830809783,0.03935213,3176.8,3176.4,0.7846]
[1736830810222,3.462503,3176.9,3176.4,0.7846]
[1736830810382,3.14773,3176.9,3176.4,0.7846]
[1736830812005,0.03935212,3176.8,3176.4,0.7846]
[1736830812410,3.9785,3177.2,3176.5,0.0075]
[1736830812611,3.1475,3177.2,3176.5,0.0075]
[1736830812983,3.1475,3177.2,3176.1,0.8071]
[1736830813182,3.1475,3177.2,3176.3,0.7921]
[1736830813883,3.1475,3177.2,3176.5,0.0075]
[1736830814197,3.1475,3177.2,3176.6,0.7661]
[1736830817480,3.1475,3177.2,3176.7,0.08619794]
[1736830821487,0.63639687,3177.5,3176.7,0.08619794]
[1736830821687,3.14735,3177.3,3176.8,0.7661]
[1736830821918,3.14735,3177.3,3176.9,0.08592877]
[1736830822436,4.57679689,3177.3,3176.9,0.08592877]
[1736830822585,0.03934501,3177.2,3176.9,0.08592877]
[1736830822788,3.14755,3177.1,3176.9,0.08592877]
[1736830822991,3.98476687,3177.0,3176.9,0.08592877]
[1736830823191,3.14782,3176.9,3176.5,7.28648511]
[1736830827177,3.14782,3176.9,3176.6,0.08581887]
[1736830828428,3.14782,3176.9,3176.4,3.7661]
[1736830828628,3.14782,3176.9,3176.7,0.0857884]
[1736830828828,3.14782,3176.9,3176.4,3.7661]
[1736830829465,3.14782,3176.9,3176.5,0.08584934]
[1736830829790,3.14782,3176.9,3176.4,3.7661]
[1736830829977,3.14782,3176.9,3176.6,0.08581887]
[1736830830276,3.14782,3176.9,3176.4,3.7661]
[1736830830452,3.14782,3176.9,3176.7,0.0857884]
[1736830830645,3.14782,3176.9,3176.4,3.7661]
[1736830830848,0.7978,3177.0,3176.8,0.08575793]
[1736830831060,0.7978,3177.0,3176.4,3.7661]
[1736830831263,0.7978,3177.0,3176.9,0.08572747]
[1736830831563,1.33527869,3177.0,3176.9,0.08572747]
[1736830831767,1.33527869,3177.0,3176.4,3.7661]
[1736830831980,0.7978,3177.0,3176.9,0.08572747]
[1736830832186,0.7978,3177.0,3176.4,3.7661]
[1736830832398,0.7978,3177.0,3176.9,0.08572747]
[1736830832683,0.7978,3177.0,3176.4,3.7661]
[1736830832847,0.7978,3177.0,3176.9,0.08572747]
[1736830833047,0.53747869,3177.0,3176.4,3.7661]
[1736830833250,4.57698689,3177.1,3176.9,0.08572747]
[1736830833489,4.57698689,3177.1,3176.4,3.7661]
[1736830833693,5.12698689,3177.1,3177.0,0.085697]
[1736830833892,5.12698689,3177.1,3176.4,3.7661]
[1736830834498,5.12698689,3177.1,3176.5,0.08597374]
[1736830835485,0.7712,3177.3,3176.5,0.97841498]
[1736830835486,3.91856,3177.3,3176.5,0.97841498]
[1736830835646,1.42944689,3177.2,3176.6,0.7841]
[1736830835848,3.91856,3177.3,3176.6,0.7841]
[1736830836049,5.34800689,3177.3,3176.7,0.08585727]
[1736830836696,1.42944689,3177.1,3176.7,0.08585727]
[1736830837360,0.7712,3177.5,3176.9,0.7841]
[1736830837553,1.42944689,3177.4,3176.9,0.7841]
[1736830837748,1.42944689,3177.4,3177.0,0.08572424]
[1736830837958,3.91785,3178.0,3177.2,0.7841]
[1736830838289,1.42944689,3177.7,3177.2,0.7841]
[1736830838619,1.42944689,3177.9,3177.3,0.08556346]
[1736830839410,0.7712,3178.0,3177.3,0.08556346]
[1736830839411,1.42944689,3177.7,3177.3,0.08556346]
[1736830839770,1.42944689,3177.7,3177.2,0.7841]
[1736830839970,1.42944689,3177.7,3177.4,0.08540809]
[1736830840209,1.42944689,3177.7,3177.3,0.08543855]
[1736830840511,1.42944689,3177.7,3177.4,0.08540809]
[1736830840688,1.42944689,3177.7,3177.2,0.7841]
[1736830841193,1.42944689,3177.7,3177.3,0.08543855]
[1736830841396,0.0393385,3177.9,3177.3,0.08543855]
[1736830841592,0.0393385,3177.9,3177.2,0.7841]
[1736830841791,0.0393385,3177.9,3177.4,0.08540809]
[1736830841990,0.73692037,3177.9,3177.3,0.08543855]
[1736830842188,0.0393385,3177.9,3177.5,0.08537764]
[1736830842391,3.7899202,3178.0,3177.4,0.08540809]
[1736830842605,3.7899202,3178.0,3177.6,0.08534719]
[1736830842805,3.7899202,3178.0,3177.5,0.08537764]
[1736830843017,3.7899202,3178.0,3177.7,0.08531674]
[1736830843324,4.54813562,3178.0,3177.8,0.08528629]
[1736830843827,4.54813562,3178.0,3177.2,0.7841]
[1736830844126,3.7899202,3178.0,3177.3,0.08543855]
[1736830845419,0.64567395,3178.2,3177.5,0.7569]
[1736830845778,3.0187202,3178.0,3177.6,0.08438272]
[1736830848414,0.64567395,3178.2,3177.6,0.08438272]
[1736830852542,6.9659702,3178.3,3177.6,0.08438272]
[1736830852948,7.66256722,3178.3,3177.6,0.08438272]
[1736830853240,0.03933612,3178.2,3177.6,0.08438272]
[1736830853843,7.66256722,3178.3,3177.6,0.08438272]
[1736830857620,0.03933599,3178.2,3177.6,0.08438272]
[1736830858231,3.18577599,3178.2,3177.6,0.08438272]
[1736830858446,0.77019932,3178.1,3177.6,0.08438272]
[1736830858664,0.03933598,3178.0,3177.6,0.08438272]
[1736830861573,1.42877141,3177.9,3177.6,0.08438272]
[1736830862071,5.36250141,3177.7,3177.6,0.08438272]
[1736830862257,6.45268515,3177.7,3177.6,0.08438272]
[1736830862455,3.14729,3177.4,3176.7,1.13021954]
[1736830862657,1.42877141,3177.1,3176.7,0.8013]
[1736830862969,0.03934653,3177.0,3176.8,0.07611599]
[1736830863173,1.42877141,3176.9,3176.8,0.07611599]
[1736830864027,1.42877141,3177.1,3176.8,0.07611599]
[1736830864348,0.039348,3177.0,3176.8,0.07611599]
[1736830864868,1.42877141,3176.9,3176.8,0.07611599]
[1736830865067,1.46811941,3177.0,3176.5,3.0]
[1736830865282,1.42877141,3176.6,3176.5,3.0]
[1736830865449,6.99483368,3176.9,3176.5,3.0]
[1736830865780,0.57644555,3176.8,3176.5,3.0]
[1736830865950,0.03935108,3176.7,3176.5,3.0]
[1736830866333,0.03935108,3176.8,3176.2,0.8013]
[1736830866558,0.03935108,3176.8,3176.1,0.3154]
[1736830866559,6.16890568,3176.6,3176.1,0.3154]
[1736830866774,0.82615518,3176.5,3176.1,0.3154]
[1736830868437,0.82615518,3176.5,3176.0,0.8013]
[1736830869451,0.7868,3176.5,3176.0,0.8013]
[1736830869774,3.14784,3176.8,3176.1,0.0075]
[1736830869986,3.93431,3177.2,3176.2,0.8013]
[1736830870269,0.03935065,3177.1,3176.3,0.38088]
[1736830870475,3.14752,3177.1,3176.3,0.38088]
[1736830870650,3.14752,3177.1,3176.2,0.8013]
[1736830870847,3.97484,3177.5,3176.5,0.0075]
[1736830871177,4.0,3178.0,3176.4,3.0]
[1736830871178,3.14692,3177.8,3177.0,0.8313]
[1736830871380,0.8277,3177.9,3177.1,0.0075]
[1736830871537,7.77607671,3178.0,3177.1,0.0075]
[1736830871877,3.14646,3178.2,3177.3,0.0075]
[1736830872075,3.77322786,3178.2,3177.3,3.0075]
[1736830872276,3.14646,3178.2,3177.4,0.07627967]
[1736830872521,3.02087568,3178.3,3177.5,0.30837797]
[1736830872674,0.03933585,3178.1,3177.5,0.30837797]
[1736830872869,0.03933585,3178.1,3177.6,0.07621877]
[1736830873711,0.03933468,3178.2,3177.6,0.07621877]
[1736830875289,3.18577468,3178.2,3177.6,0.07621877]
[1736830875515,3.88920972,3178.2,3177.6,0.07621877]
[1736830875711,3.88920972,3178.2,3177.3,3.0075]
[1736830875900,3.88920972,3178.2,3177.7,0.07592502]
[1736830876106,3.88920972,3178.2,3177.3,15.36632381]
[1736830876282,3.18577468,3178.2,3177.8,0.07589457]
[1736830876626,3.18577468,3178.2,3177.9,0.07586413]
[1736830877106,3.14656,3178.1,3177.3,15.36632381]
[1736830877319,0.0393347,3178.0,3177.3,15.36632381]
[1736830878617,0.0393347,3178.0,3177.3,15.35882381]
[1736830878818,0.0393347,3178.0,3177.5,0.0075]
[1736830879182,0.796,3177.9,3177.3,15.35882381]
[1736830879532,3.14686,3177.8,3177.3,15.35882381]
[1736830879682,3.14656,3178.1,3177.3,15.35882381]
[1736830879885,0.0393363,3178.0,3177.4,1.61523238]
[1736830880420,0.0393363,3178.0,3177.5,0.0075]
[1736830880623,3.14635,3178.3,3177.5,0.0075]
[1736830880809,3.14635,3178.3,3177.6,0.7935]
[1736830881249,3.14635,3178.3,3177.6,1.03512324]
[1736830881544,0.03933469,3178.2,3177.6,1.03512324]
[1736830882143,3.06021037,3178.2,3177.6,1.03512324]
[1736830882335,6.20665037,3178.2,3177.6,0.7935]
[1736830884653,3.18577469,3178.2,3177.6,0.7935]
[1736830884853,0.796,3178.9,3177.7,0.0075]
[1736830885062,3.14595,3178.7,3177.9,0.0075]
[1736830885262,0.796,3178.9,3177.9,0.0075]
[1736830885263,0.03932811,3178.6,3178.0,1.60148387]
[1736830885431,3.02087568,3179.3,3178.3,0.0075]
[1736830885641,0.63435916,3178.9,3178.3,0.0075]
[1736830885843,0.03932364,3179.2,3178.3,0.0075]
[1736830886034,3.14557,3179.1,3178.3,0.0075]
[1736830886246,0.03932364,3179.0,3178.3,0.0075]
[1736830887273,0.03932364,3179.0,3178.4,3.0752409]
[1736830887637,3.14557,3179.1,3178.4,3.0752409]
[1736830888459,0.03932365,3179.0,3178.4,3.0752409]
[1736830888643,0.03932365,3179.0,3178.4,4.69874737]
[1736830888846,0.03932365,3179.0,3178.5,0.792]
[1736830889044,3.14557,3179.1,3178.5,0.86721047]
[1736830889392,0.55,3179.2,3178.5,0.86721047]
[1736830889744,3.69549,3179.2,3178.5,0.86721047]
[1736830891270,3.69549,3179.2,3178.5,1.92426603]
[1736830898393,3.14558,3179.1,3178.5,0.86721047]
[1736830898594,3.69566,3179.0,3178.5,0.86721047]
[1736830898798,0.03932568,3178.9,3178.5,0.86721047]
[1736830900989,0.03932566,3178.9,3178.5,0.86721047]
[1736830905007,0.55,3179.1,3178.5,0.86721047]
[1736830905311,3.14544,3179.2,3178.6,0.8227]
[1736830905606,3.14544,3179.2,3178.6,0.8973537]
[1736830906209,0.03932353,3179.4,3178.7,0.0075]
[1736830906414,0.03932353,3179.4,3178.8,0.8227]
[1736830906583,0.03932353,3179.4,3178.8,0.89729284]
[1736830906758,0.03932353,3179.4,3178.8,1.60237512]
[1736830907194,0.03931845,3179.5,3178.8,1.60237512]
[1736830908003,3.14508,3179.6,3178.8,1.60237512]
[1736830908502,0.03931844,3179.5,3178.8,1.60237512]
[1736830909902,0.55,3179.3,3178.8,0.89729284]
[1736830910104,3.02087568,3179.4,3178.8,0.89729284]
[1736830910358,3.14514,3179.6,3178.8,0.89729284]
[1736830910511,0.03931843,3179.5,3178.8,0.89729284]
[1736830916582,3.14514,3179.6,3178.8,0.89729284]
[1736830916872,0.03931843,3179.5,3178.8,0.89729284]
[1736830917231,3.14514,3179.6,3178.8,0.89729284]
[1736830917871,0.03931842,3179.5,3178.8,0.89729284]
[1736830918181,0.03931842,3179.5,3178.8,1.60162512]
[1736830918685,3.18446842,3179.5,3178.8,1.60162512]
[1736830918839,3.18446842,3179.5,3178.8,0.89729284]
[1736830925739,3.14515,3179.5,3178.8,0.89729284]
[1736830927083,6.16602568,3179.5,3178.8,0.89729284]
[1736830927381,1.42759691,3179.2,3178.8,0.89729284]
[1736830928766,1.38592269,3179.2,3178.8,0.89729284]
[1736830930368,1.42759691,3179.4,3178.9,0.8262]
[1736830930572,0.63667047,3179.7,3179.0,0.8262]
[1736830930771,0.63667047,3179.7,3179.1,0.8337]
[1736830930772,1.42759691,3179.7,3179.1,0.8337]
[1736830931013,1.42759691,3179.5,3179.1,0.8337]
[1736830931299,1.42759691,3179.5,3179.2,0.0734526]
[1736830934561,0.13706252,3179.8,3179.2,0.0734526]
[1736830934562,1.42759691,3179.3,3179.2,0.0734526]
[1736830935073,1.42759691,3179.3,3178.8,0.7861]
[1736830935412,1.42759691,3179.1,3178.8,1.89335851]
[1736830936404,1.42759691,3179.1,3178.9,0.29406406]
[1736830937523,3.0167157,3179.0,3178.8,0.7861]
[1736830937691,0.03932199,3179.2,3178.8,0.7861]
[1736830939100,3.18477199,3179.2,3178.8,0.7861]
[1736830939316,3.0167157,3179.0,3178.8,0.7861]
[1736830940084,3.0167157,3179.0,3178.5,0.29411816]
[1736830940085,0.03932207,3178.9,3178.5,0.29411816]
[1736830940280,0.03932207,3178.9,3178.4,0.7861]
[1736830940711,3.77690044,3179.5,3178.2,3.0]
[1736830940712,3.0167157,3179.4,3178.6,0.7861]
[1736830941025,0.03932053,3179.3,3178.6,0.7861]
[1736830943193,0.03932053,3179.3,3178.7,0.37936]
[1736830945358,6.1622557,3179.1,3178.5,3.0]
[1736830947420,6.1622557,3179.1,3178.6,0.07223009]
[1736830950359,4.49444,3178.7,3178.6,0.07223009]
[1736830950522,4.49444,3178.7,3178.0,0.8213]
[1736830950523,4.53377033,3178.7,3178.0,0.8213]
[1736830950722,3.0167157,3178.5,3178.0,0.8213]
[1736830950955,0.03933038,3178.4,3178.0,0.8213]
[1736830951858,3.0167157,3178.5,3178.0,0.8213]
[1736830954732,0.03933038,3178.4,3177.8,0.8213]
[1736830954941,0.03933038,3178.4,3177.8,1.93207851]
[1736830955304,0.7985,3178.3,3177.8,1.93207851]
[1736830955468,0.03933188,3178.2,3177.8,1.93207851]
[1736830956143,0.7985,3178.3,3177.8,1.93207851]